[Event "Early-Titled-Tuesday-Blitz-July-09-2024"]
[Site "Chess.com"]
[Date "2024.07.09"]
[Round "7"]
[White "lluiss"]
[Black "urano56"]
[Result "1-0"]
[WhiteElo "2195"]
[BlackElo "2379"]
[TimeControl "180+1"]
[EndTime "9:18:42 PDT"]
[Termination "lluiss won by resignation"]

1. Nf3 {[%clk 0:02:17.9]} 1... Nf6 {[%clk 0:02:59.6]} 2. d4 {[%clk 0:02:16.7]}
2... e6 {[%clk 0:02:56.3]} 3. e3 {[%clk 0:02:15.5]} 3... c5 {[%clk 0:02:55.7]}
4. c4 {[%clk 0:02:14.8]} 4... Nc6 {[%clk 0:02:55.9]} 5. Nc3 {[%clk 0:02:14.5]}
5... cxd4 {[%clk 0:02:55.2]} 6. exd4 {[%clk 0:02:14.3]} 6... d5 {[%clk
0:02:54.8]} 7. Be2 {[%clk 0:02:10.6]} 7... dxc4 {[%clk 0:02:54.2]} 8. Bxc4
{[%clk 0:02:10.7]} 8... Bd6 {[%clk 0:02:51.2]} 9. O-O {[%clk 0:02:09.9]} 9...
O-O {[%clk 0:02:50.6]} 10. Re1 {[%clk 0:02:09.3]} 10... a6 {[%clk 0:02:50.2]}
11. a3 {[%clk 0:02:09.4]} 11... Bc7 {[%clk 0:02:50.2]} 12. Bg5 {[%clk
0:02:05.2]} 12... b5 {[%clk 0:02:45.4]} 13. Ba2 {[%clk 0:02:02.9]} 13... Bd6
{[%clk 0:02:31.5]} 14. d5 {[%clk 0:02:02.5]} 14... exd5 {[%clk 0:02:19.5]} 15.
Nxd5 {[%clk 0:01:59.7]} 15... Be7 {[%clk 0:02:19.6]} 16. Nxe7+ {[%clk 0:01:55]}
16... Nxe7 {[%clk 0:02:15.5]} 17. Qxd8 {[%clk 0:01:54.9]} 17... Rxd8 {[%clk
0:02:16]} 18. Rxe7 {[%clk 0:01:54.5]} 18... Bg4 {[%clk 0:02:10.5]} 19. Bxf6
{[%clk 0:01:42.8]} 19... gxf6 {[%clk 0:02:10.6]} 20. Rxf7 {[%clk 0:01:41.7]}
20... Kh8 {[%clk 0:02:08.7]} 21. Rxf6 {[%clk 0:01:35.9]} 21... Ra7 {[%clk
0:02:06.2]} 22. h3 {[%clk 0:01:29.7]} 22... Bh5 {[%clk 0:02:02.8]} 23. Ne5
{[%clk 0:01:25.1]} 23... Kg7 {[%clk 0:02:00]} 24. Rf5 {[%clk 0:01:21.1]} 24...
Be8 {[%clk 0:01:58.4]} 25. Re1 {[%clk 0:01:09.5]} 25... Rd2 {[%clk 0:01:58.2]}
26. Nf3 {[%clk 0:01:07.3]} 26... Rxb2 {[%clk 0:01:57]} 27. Rxe8 {[%clk
0:00:59.1]} 27... Rxa2 {[%clk 0:01:56.3]} 28. Re4 {[%clk 0:00:53.6]} 28... Rf7
{[%clk 0:01:48.5]} 29. Rg4+ {[%clk 0:00:51.5]} 29... Kf8 {[%clk 0:01:48.7]} 30.
Rc5 {[%clk 0:00:30.6]} 30... Rxa3 {[%clk 0:01:42.2]} 31. Ne5 {[%clk 0:00:30.3]}
31... Ra1+ {[%clk 0:01:41.8]} 32. Kh2 {[%clk 0:00:29.5]} 32... Rf5 {[%clk
0:01:38.9]} 33. Nd7+ {[%clk 0:00:28.1]} 33... Ke7 {[%clk 0:01:39.3]} 34. Rxf5
{[%clk 0:00:27.5]} 34... Kxd7 {[%clk 0:01:39.8]} 35. Rh5 {[%clk 0:00:27.7]}
35... Kc6 {[%clk 0:01:39.2]} 36. Rxh7 {[%clk 0:00:27.5]} 36... Kb6 {[%clk
0:01:39.2]} 37. Rh6+ {[%clk 0:00:27.3]} 37... Ka5 {[%clk 0:01:39.6]} 38. Rgg6
{[%clk 0:00:27]} 38... Kb4 {[%clk 0:01:36.5]} 39. Rxa6 {[%clk 0:00:26.7]} 39...
Rf1 {[%clk 0:01:37.4]} 40. f3 {[%clk 0:00:25.5]} 40... Kb3 {[%clk 0:01:37.8]}
41. Rhb6 {[%clk 0:00:25.1]} 41... b4 {[%clk 0:01:38.4]} 42. Ra8 {[%clk
0:00:25.4]} 42... Rc1 {[%clk 0:01:37.6]} 43. Rab8 {[%clk 0:00:25.6]} 43... Rc4
{[%clk 0:01:38.2]} 44. Rxb4+ {[%clk 0:00:25.9]} 44... Rxb4 {[%clk 0:01:39.1]}
45. Rxb4+ {[%clk 0:00:25.7]} 45... Kxb4 {[%clk 0:01:40]} 46. Kg3 {[%clk
0:00:25.9]} 46... Kc5 {[%clk 0:01:40.9]} 47. Kf4 {[%clk 0:00:26.2]} 47... Kd6
{[%clk 0:01:41.8]} 48. g4 {[%clk 0:00:26.6]} 48... Ke7 {[%clk 0:01:42.7]} 49.
Ke5 {[%clk 0:00:26.8]} 49... Kf8 {[%clk 0:01:43.6]} 50. f4 {[%clk 0:00:27.2]}
50... Kg7 {[%clk 0:01:44.5]} 51. f5 {[%clk 0:00:27.4]} 51... Kh7 {[%clk
0:01:45.4]} 52. Ke6 {[%clk 0:00:27.7]} 52... Kh6 {[%clk 0:01:46.3]} 53. f6
{[%clk 0:00:27.9]} 53... Kg6 {[%clk 0:01:45.7]} 54. Ke7 {[%clk 0:00:27.6]} 54...
Kg5 {[%clk 0:01:46.3]} 55. f7 {[%clk 0:00:27.8]} 55... Kg6 {[%clk 0:01:46.4]}
56. f8=Q {[%clk 0:00:26.9]} 56... Kh7 {[%clk 0:01:47.3]} 57. Qf3 {[%clk
0:00:25.9]} 1-0

[Event "Early-Titled-Tuesday-Blitz-July-09-2024"]
[Site "Chess.com"]
[Date "2024.07.09"]
[Round "7"]
[White "C_K_G"]
[Black "vikber19611"]
[Result "1-0"]
[WhiteElo "2234"]
[BlackElo "1655"]
[TimeControl "180+1"]
[EndTime "9:18:43 PDT"]
[Termination "C_K_G won by checkmate"]

1. e4 {[%clk 0:02:59.5]} 1... e5 {[%clk 0:02:58.8]} 2. Nf3 {[%clk 0:02:59.4]}
2... Nc6 {[%clk 0:02:58.5]} 3. Bc4 {[%clk 0:02:59.2]} 3... Nf6 {[%clk
0:02:57.7]} 4. Ng5 {[%clk 0:02:58.8]} 4... d5 {[%clk 0:02:56.8]} 5. exd5 {[%clk
0:02:59.7]} 5... Na5 {[%clk 0:02:56.5]} 6. Bb5+ {[%clk 0:02:59.5]} 6... c6
{[%clk 0:02:56.5]} 7. dxc6 {[%clk 0:03:00.3]} 7... bxc6 {[%clk 0:02:56.4]} 8.
Qf3 {[%clk 0:03:00.9]} 8... Bb7 {[%clk 0:02:54.9]} 9. Bd3 {[%clk 0:02:59]} 9...
c5 {[%clk 0:02:45.7]} 10. Bb5+ {[%clk 0:02:51.9]} 10... Ke7 {[%clk 0:02:25.3]}
11. Qc3 {[%clk 0:02:44.5]} 11... Qc7 {[%clk 0:02:09.3]} 12. b4 {[%clk
0:02:32.4]} 12... Nd5 {[%clk 0:01:37.5]} 13. Qf3 {[%clk 0:02:18]} 13... f6
{[%clk 0:01:32.4]} 14. bxa5 {[%clk 0:02:06.6]} 14... Nf4 {[%clk 0:01:13.7]} 15.
Qg4 {[%clk 0:01:53.6]} 15... Nxg2+ {[%clk 0:01:07.4]} 16. Kf1 {[%clk 0:01:45.8]}
16... fxg5 {[%clk 0:01:07]} 17. d4 {[%clk 0:01:40.2]} 17... cxd4 {[%clk
0:00:55]} 18. Bxg5+ {[%clk 0:01:38.8]} 18... Kd6 {[%clk 0:00:45.3]} 19. Nd2
{[%clk 0:01:29.5]} 19... Be7 {[%clk 0:00:23.5]} 20. Nc4+ {[%clk 0:01:20.5]}
20... Kc5 {[%clk 0:00:17.9]} 21. a4 {[%clk 0:01:07.2]} 21... Rhf8 {[%clk
0:00:12.3]} 22. Bc1 {[%clk 0:01:01.3]} 22... Ne3+ {[%clk 0:00:07.6]} 23. Nxe3
{[%clk 0:01:00.9]} 23... Bxh1 {[%clk 0:00:06.9]} 24. Ba3# {[%clk 0:00:58.8]} 1-0

[Event "Early-Titled-Tuesday-Blitz-July-09-2024"]
[Site "Chess.com"]
[Date "2024.07.09"]
[Round "7"]
[White "LunaTheTuna2013"]
[Black "KVAIDAN"]
[Result "0-1"]
[WhiteElo "2044"]
[BlackElo "2321"]
[TimeControl "180+1"]
[EndTime "9:18:46 PDT"]
[Termination "KVAIDAN won on time"]

1. d4 {[%clk 0:03:00.9]} 1... e6 {[%clk 0:02:58.8]} 2. c4 {[%clk 0:03:00.4]}
2... f5 {[%clk 0:02:59.1]} 3. Nc3 {[%clk 0:02:59]} 3... Nf6 {[%clk 0:02:58.8]}
4. Nf3 {[%clk 0:02:54.5]} 4... Bb4 {[%clk 0:02:58]} 5. e3 {[%clk 0:02:52.3]}
5... b6 {[%clk 0:02:57.8]} 6. Bd3 {[%clk 0:02:50.7]} 6... Bb7 {[%clk 0:02:57.3]}
7. Bd2 {[%clk 0:02:47.7]} 7... O-O {[%clk 0:02:57.1]} 8. O-O {[%clk 0:02:41.6]}
8... Bxc3 {[%clk 0:02:37.4]} 9. Bxc3 {[%clk 0:02:37.9]} 9... Ne4 {[%clk
0:02:37.4]} 10. Rc1 {[%clk 0:02:24.4]} 10... Rf6 {[%clk 0:02:21]} 11. Bxe4
{[%clk 0:02:02.6]} 11... Bxe4 {[%clk 0:02:00.1]} 12. d5 {[%clk 0:01:57.6]} 12...
Rg6 {[%clk 0:01:56.9]} 13. dxe6 {[%clk 0:01:49.2]} 13... a5 {[%clk 0:01:48.8]}
14. Kh1 {[%clk 0:01:32]} 14... Qe7 {[%clk 0:01:46.9]} 15. exd7 {[%clk 0:01:27]}
15... Nxd7 {[%clk 0:01:47.1]} 16. Rg1 {[%clk 0:01:03.6]} 16... Rh6 {[%clk
0:01:39.8]} 17. h3 {[%clk 0:00:53.8]} 17... Nc5 {[%clk 0:01:36.5]} 18. a3 {[%clk
0:00:45.2]} 18... Nd3 {[%clk 0:01:34.6]} 19. Rc2 {[%clk 0:00:40.9]} 19... Rd8
{[%clk 0:01:30.2]} 20. Rd2 {[%clk 0:00:39.8]} 20... Nxf2+ {[%clk 0:01:26]} 21.
Rxf2 {[%clk 0:00:31.8]} 21... Rxd1 {[%clk 0:01:26.2]} 22. Rxd1 {[%clk
0:00:31.6]} 22... Rd6 {[%clk 0:01:18.6]} 23. Rxd6 {[%clk 0:00:19]} 23... Qxd6
{[%clk 0:01:18.3]} 24. Rd2 {[%clk 0:00:18.9]} 24... Qe7 {[%clk 0:01:14.8]} 25.
Bd4 {[%clk 0:00:07.9]} 25... c5 {[%clk 0:01:13.3]} 26. Bc3 {[%clk 0:00:06.3]}
26... h6 {[%clk 0:01:13.4]} 27. Re2 {[%clk 0:00:04.4]} 27... g5 {[%clk 0:01:10]}
28. Ne5 {[%clk 0:00:01.2]} 28... g4 {[%clk 0:01:09.5]} 0-1

[Event "Early-Titled-Tuesday-Blitz-July-09-2024"]
[Site "Chess.com"]
[Date "2024.07.09"]
[Round "7"]
[White "Igor_Janik"]
[Black "Ditman2007"]
[Result "1-0"]
[WhiteElo "2890"]
[BlackElo "2713"]
[TimeControl "180+1"]
[EndTime "9:18:47 PDT"]
[Termination "Igor_Janik won by checkmate"]

1. e4 {[%clk 0:03:00.9]} 1... e6 {[%clk 0:02:46.1]} 2. Qe2 {[%clk 0:02:59.3]}
2... c5 {[%clk 0:02:42.4]} 3. Nf3 {[%clk 0:02:59]} 3... Nc6 {[%clk 0:02:42.5]}
4. g3 {[%clk 0:02:58.4]} 4... g6 {[%clk 0:02:41.6]} 5. Bg2 {[%clk 0:02:56.2]}
5... Bg7 {[%clk 0:02:42]} 6. O-O {[%clk 0:02:56.6]} 6... d6 {[%clk 0:02:41.8]}
7. c3 {[%clk 0:02:54.5]} 7... Nge7 {[%clk 0:02:42.2]} 8. Rd1 {[%clk 0:02:52.9]}
8... O-O {[%clk 0:02:41.8]} 9. d4 {[%clk 0:02:53.2]} 9... cxd4 {[%clk
0:02:41.9]} 10. cxd4 {[%clk 0:02:54.1]} 10... d5 {[%clk 0:02:42.5]} 11. e5
{[%clk 0:02:53.5]} 11... a5 {[%clk 0:02:43]} 12. Nc3 {[%clk 0:02:48.3]} 12... b6
{[%clk 0:02:43.1]} 13. Bf4 {[%clk 0:02:44]} 13... Ba6 {[%clk 0:02:43.6]} 14. Qd2
{[%clk 0:02:44.7]} 14... b5 {[%clk 0:02:43.9]} 15. h4 {[%clk 0:02:34]} 15... Nf5
{[%clk 0:02:31.1]} 16. Bh3 {[%clk 0:02:27.4]} 16... Kh8 {[%clk 0:02:08]} 17.
Rac1 {[%clk 0:02:21.4]} 17... Rc8 {[%clk 0:02:06.1]} 18. Bxf5 {[%clk 0:02:18.4]}
18... gxf5 {[%clk 0:02:06.4]} 19. Bg5 {[%clk 0:02:07]} 19... f6 {[%clk
0:02:06.7]} 20. exf6 {[%clk 0:02:06.4]} 20... Bxf6 {[%clk 0:02:07.6]} 21. Bxf6+
{[%clk 0:02:06.1]} 21... Qxf6 {[%clk 0:02:08.5]} 22. Ne2 {[%clk 0:02:06.7]}
22... b4 {[%clk 0:01:43.2]} 23. Nf4 {[%clk 0:02:06.6]} 23... Ne7 {[%clk
0:01:24.7]} 24. Ne5 {[%clk 0:02:04.2]} 24... Rfd8 {[%clk 0:01:20.8]} 25. Rxc8
{[%clk 0:01:59.5]} 25... Rxc8 {[%clk 0:01:21.7]} 26. Rc1 {[%clk 0:02:00.2]}
26... h6 {[%clk 0:00:23.8]} 27. Rxc8+ {[%clk 0:01:56.2]} 27... Bxc8 {[%clk
0:00:24.7]} 28. Qc1 {[%clk 0:01:47.3]} 28... Qf8 {[%clk 0:00:18.5]} 29. Qc7
{[%clk 0:01:46.3]} 29... Qe8 {[%clk 0:00:18.8]} 30. Qxe7 {[%clk 0:01:46.2]}
30... Qxe7 {[%clk 0:00:19.3]} 31. Nfg6+ {[%clk 0:01:46.5]} 31... Kg7 {[%clk
0:00:20.1]} 32. Nxe7 {[%clk 0:01:47.4]} 32... Ba6 {[%clk 0:00:20.8]} 33. N7c6
{[%clk 0:01:47]} 33... Bc4 {[%clk 0:00:21.2]} 34. Nxa5 {[%clk 0:01:45.9]} 34...
Bxa2 {[%clk 0:00:21.4]} 35. Nac6 {[%clk 0:01:46.6]} 35... b3 {[%clk 0:00:21.6]}
36. f4 {[%clk 0:01:45.4]} 36... Kf6 {[%clk 0:00:21.6]} 37. Kf2 {[%clk 0:01:46]}
37... Bb1 {[%clk 0:00:22.2]} 38. Ke3 {[%clk 0:01:46.5]} 38... Be4 {[%clk
0:00:21.8]} 39. Kd2 {[%clk 0:01:46.3]} 39... Bc2 {[%clk 0:00:21.2]} 40. Kc3
{[%clk 0:01:46.8]} 40... h5 {[%clk 0:00:20.2]} 41. Na5 {[%clk 0:01:47.4]} 41...
Bd1 {[%clk 0:00:20.2]} 42. Nxb3 {[%clk 0:01:47.8]} 42... Bg4 {[%clk 0:00:19.8]}
43. Nc5 {[%clk 0:01:47.9]} 43... Be2 {[%clk 0:00:20.1]} 44. Kb4 {[%clk
0:01:48.1]} 44... Bb5 {[%clk 0:00:21]} 45. Kxb5 {[%clk 0:01:47.6]} 45... Ke7
{[%clk 0:00:21.7]} 46. Kc6 {[%clk 0:01:48.3]} 46... Kf6 {[%clk 0:00:22.6]} 47.
Kd6 {[%clk 0:01:48.8]} 47... Kg7 {[%clk 0:00:22.8]} 48. Kxe6 {[%clk 0:01:49.3]}
48... Kh6 {[%clk 0:00:23.7]} 49. Kxf5 {[%clk 0:01:49.4]} 49... Kh7 {[%clk
0:00:24.6]} 50. Kg5 {[%clk 0:01:50.1]} 50... Kh8 {[%clk 0:00:25.5]} 51. f5
{[%clk 0:01:50.7]} 51... Kh7 {[%clk 0:00:26.4]} 52. f6 {[%clk 0:01:51]} 52...
Kg8 {[%clk 0:00:25.4]} 53. Kg6 {[%clk 0:01:51.1]} 53... Kh8 {[%clk 0:00:25.7]}
54. Ne6 {[%clk 0:01:48.1]} 54... Kg8 {[%clk 0:00:26.6]} 55. b4 {[%clk 0:01:45]}
55... Kh8 {[%clk 0:00:27.5]} 56. b5 {[%clk 0:01:45.7]} 56... Kg8 {[%clk
0:00:28.3]} 57. b6 {[%clk 0:01:46.6]} 57... Kh8 {[%clk 0:00:29.2]} 58. b7 {[%clk
0:01:47.5]} 58... Kg8 {[%clk 0:00:30.1]} 59. b8=Q# {[%clk 0:01:48.4]} 1-0

[Event "Early-Titled-Tuesday-Blitz-July-09-2024"]
[Site "Chess.com"]
[Date "2024.07.09"]
[Round "7"]
[White "MrMatesM"]
[Black "Cxrjs"]
[Result "1/2-1/2"]
[WhiteElo "2692"]
[BlackElo "2523"]
[TimeControl "180+1"]
[EndTime "9:18:51 PDT"]
[Termination "Game drawn by repetition"]

1. Nf3 {[%clk 0:03:00.9]} 1... Nf6 {[%clk 0:02:56.3]} 2. g3 {[%clk 0:03:01.8]}
2... g6 {[%clk 0:02:56.5]} 3. Bg2 {[%clk 0:03:02.7]} 3... Bg7 {[%clk 0:02:57.4]}
4. O-O {[%clk 0:03:03]} 4... O-O {[%clk 0:02:58.1]} 5. d3 {[%clk 0:03:03.9]}
5... d6 {[%clk 0:02:58.7]} 6. e4 {[%clk 0:03:04.2]} 6... Nc6 {[%clk 0:02:59.2]}
7. Re1 {[%clk 0:03:04.5]} 7... e5 {[%clk 0:02:59.6]} 8. Nbd2 {[%clk 0:03:05.1]}
8... h6 {[%clk 0:02:57.9]} 9. c3 {[%clk 0:03:05.7]} 9... Ne8 {[%clk 0:02:53.8]}
10. b4 {[%clk 0:03:06.2]} 10... f5 {[%clk 0:02:53.9]} 11. Qc2 {[%clk 0:03:05.4]}
11... f4 {[%clk 0:02:52.1]} 12. b5 {[%clk 0:03:05.5]} 12... Ne7 {[%clk
0:02:51.6]} 13. d4 {[%clk 0:03:04.8]} 13... g5 {[%clk 0:02:50]} 14. dxe5 {[%clk
0:02:55.9]} 14... dxe5 {[%clk 0:02:49.7]} 15. Nc4 {[%clk 0:02:56.4]} 15... Ng6
{[%clk 0:02:45]} 16. Ba3 {[%clk 0:02:56.8]} 16... Rf7 {[%clk 0:02:40.9]} 17.
Rad1 {[%clk 0:02:55.2]} 17... Qf6 {[%clk 0:02:41]} 18. Nd4 {[%clk 0:01:34.9]}
18... exd4 {[%clk 0:01:31.6]} 19. e5 {[%clk 0:01:35.1]} 19... Qf5 {[%clk
0:01:28.9]} 20. Be4 {[%clk 0:01:30.3]} 20... Qh3 {[%clk 0:01:28.8]} 21. Bg2
{[%clk 0:01:21.9]} 21... Qf5 {[%clk 0:01:18]} 22. Be4 {[%clk 0:00:48.1]} 22...
Qh3 {[%clk 0:01:17.8]} 23. Bg2 {[%clk 0:00:42.3]} 23... Qe6 {[%clk 0:01:17.3]}
24. cxd4 {[%clk 0:00:40.8]} 24... f3 {[%clk 0:01:16.9]} 25. Bf1 {[%clk
0:00:40.5]} 25... Ne7 {[%clk 0:00:50.5]} 26. Bxe7 {[%clk 0:00:29.3]} 26... Rxe7
{[%clk 0:00:48.7]} 27. d5 {[%clk 0:00:29.2]} 27... Qf5 {[%clk 0:00:43.6]} 28.
Bd3 {[%clk 0:00:26.1]} 28... Qh3 {[%clk 0:00:43.2]} 29. Bf1 {[%clk 0:00:25.6]}
29... Qf5 {[%clk 0:00:42.8]} 30. Bd3 {[%clk 0:00:22.8]} 30... Qh3 {[%clk
0:00:41.9]} 31. Bf1 {[%clk 0:00:23.3]} 31... Qf5 {[%clk 0:00:41.8]} 1/2-1/2

[Event "Early-Titled-Tuesday-Blitz-July-09-2024"]
[Site "Chess.com"]
[Date "2024.07.09"]
[Round "7"]
[White "PLAYER_2006_M"]
[Black "Makswolf200817"]
[Result "1-0"]
[WhiteElo "2946"]
[BlackElo "2768"]
[TimeControl "180+1"]
[EndTime "9:18:55 PDT"]
[Termination "PLAYER_2006_M won on time"]

1. e4 {[%clk 0:03:00.9]} 1... c5 {[%clk 0:02:59.8]} 2. Nf3 {[%clk 0:03:00.1]}
2... d6 {[%clk 0:03:00.3]} 3. d4 {[%clk 0:02:59.7]} 3... cxd4 {[%clk 0:03:01]}
4. Nxd4 {[%clk 0:03:00.2]} 4... Nf6 {[%clk 0:03:01.7]} 5. Nc3 {[%clk 0:03:00.4]}
5... a6 {[%clk 0:03:02.4]} 6. a3 {[%clk 0:03:00.4]} 6... e5 {[%clk 0:02:58.2]}
7. Nf5 {[%clk 0:03:00.2]} 7... d5 {[%clk 0:02:56.7]} 8. Bg5 {[%clk 0:02:58.8]}
8... d4 {[%clk 0:02:49.8]} 9. Bxf6 {[%clk 0:02:58.8]} 9... gxf6 {[%clk
0:02:49.1]} 10. Nb1 {[%clk 0:02:58.4]} 10... Bxf5 {[%clk 0:02:47.6]} 11. exf5
{[%clk 0:02:59.3]} 11... Nc6 {[%clk 0:02:47.6]} 12. Nd2 {[%clk 0:02:57.1]} 12...
Qd5 {[%clk 0:02:47]} 13. Qe2 {[%clk 0:02:41.9]} 13... O-O-O {[%clk 0:02:09.6]}
14. Qc4 {[%clk 0:02:37.7]} 14... Bh6 {[%clk 0:01:49.7]} 15. Qxd5 {[%clk
0:02:37.5]} 15... Bxd2+ {[%clk 0:01:49.3]} 16. Kxd2 {[%clk 0:02:38.4]} 16...
Rxd5 {[%clk 0:01:49.7]} 17. Bd3 {[%clk 0:02:37.1]} 17... Rg8 {[%clk 0:01:41.9]}
18. g3 {[%clk 0:02:36.1]} 18... Rd6 {[%clk 0:01:35]} 19. Rhe1 {[%clk 0:02:35.3]}
19... Ne7 {[%clk 0:01:33.5]} 20. Rad1 {[%clk 0:02:21.4]} 20... Kc7 {[%clk
0:01:32.2]} 21. Ke2 {[%clk 0:02:22]} 21... Rb6 {[%clk 0:01:27]} 22. Rb1 {[%clk
0:02:21.1]} 22... Nc8 {[%clk 0:01:21.2]} 23. Kf3 {[%clk 0:02:06.8]} 23... Nd6
{[%clk 0:01:21]} 24. h4 {[%clk 0:02:05.6]} 24... Rc6 {[%clk 0:01:00.5]} 25. g4
{[%clk 0:02:03.3]} 25... h6 {[%clk 0:00:59.9]} 26. Kg3 {[%clk 0:02:03.6]} 26...
Rc5 {[%clk 0:00:57.1]} 27. f3 {[%clk 0:02:02.1]} 27... Nc4 {[%clk 0:00:48.9]}
28. Bxc4 {[%clk 0:01:36]} 28... Rxc4 {[%clk 0:00:49]} 29. Re2 {[%clk 0:01:36.7]}
29... Kd6 {[%clk 0:00:46.7]} 30. Rd1 {[%clk 0:01:36.3]} 30... Rgc8 {[%clk
0:00:39.6]} 31. c3 {[%clk 0:01:36.3]} 31... Kd5 {[%clk 0:00:36.9]} 32. cxd4
{[%clk 0:01:36.8]} 32... Rxd4 {[%clk 0:00:36.7]} 33. Rxd4+ {[%clk 0:01:29.6]}
33... exd4 {[%clk 0:00:15.3]} 34. Re7 {[%clk 0:01:29.5]} 34... Kc4 {[%clk
0:00:14.6]} 35. Rxf7 {[%clk 0:01:27.7]} 35... b5 {[%clk 0:00:11.7]} 36. Rxf6
{[%clk 0:01:27.3]} 36... Rd8 {[%clk 0:00:10.8]} 37. Kf2 {[%clk 0:01:24.6]} 37...
Kb3 {[%clk 0:00:09.7]} 38. Ke2 {[%clk 0:01:22.4]} 38... Kxb2 {[%clk 0:00:06.7]}
39. Rxa6 {[%clk 0:01:22.6]} 1-0

[Event "Early-Titled-Tuesday-Blitz-July-09-2024"]
[Site "Chess.com"]
[Date "2024.07.09"]
[Round "7"]
[White "FARIZA2018"]
[Black "sleeping_in_the_fire"]
[Result "1-0"]
[WhiteElo "2635"]
[BlackElo "2466"]
[TimeControl "180+1"]
[EndTime "9:18:56 PDT"]
[Termination "FARIZA2018 won by resignation"]

1. e4 {[%clk 0:03:00.9]} 1... c5 {[%clk 0:02:59.9]} 2. Nf3 {[%clk 0:03:00.9]}
2... d6 {[%clk 0:03:00.6]} 3. d4 {[%clk 0:03:00.9]} 3... cxd4 {[%clk 0:03:01.5]}
4. Nxd4 {[%clk 0:03:01.3]} 4... Nf6 {[%clk 0:03:02]} 5. Nc3 {[%clk 0:03:01.5]}
5... Nc6 {[%clk 0:03:02.6]} 6. Be2 {[%clk 0:03:01.1]} 6... g6 {[%clk 0:02:58.1]}
7. Be3 {[%clk 0:02:57]} 7... Bg7 {[%clk 0:02:55.7]} 8. O-O {[%clk 0:02:56]} 8...
O-O {[%clk 0:02:55.6]} 9. h3 {[%clk 0:02:50.6]} 9... Qa5 {[%clk 0:02:53.2]} 10.
Bc4 {[%clk 0:02:42.7]} 10... Bd7 {[%clk 0:02:48.8]} 11. Bb3 {[%clk 0:02:38.3]}
11... Rac8 {[%clk 0:02:22.8]} 12. f4 {[%clk 0:02:36.3]} 12... e5 {[%clk
0:01:58.8]} 13. Nxc6 {[%clk 0:02:29.7]} 13... Bxc6 {[%clk 0:01:57.9]} 14. fxe5
{[%clk 0:02:29.1]} 14... dxe5 {[%clk 0:01:51]} 15. Qf3 {[%clk 0:02:24.8]} 15...
Qb4 {[%clk 0:01:35.6]} 16. a3 {[%clk 0:02:23.3]} 16... Qa5 {[%clk 0:01:25.2]}
17. Bg5 {[%clk 0:02:11]} 17... Nh5 {[%clk 0:01:09.8]} 18. Be7 {[%clk 0:01:57.1]}
18... Bh6 {[%clk 0:00:41.7]} 19. Bxf8 {[%clk 0:01:43.1]} 19... Rxf8 {[%clk
0:00:41.1]} 20. Rad1 {[%clk 0:01:41.5]} 20... Qb6+ {[%clk 0:00:08.4]} 21. Kh1
{[%clk 0:01:40]} 21... Bf4 {[%clk 0:00:08.8]} 22. Ne2 {[%clk 0:01:39.2]} 22...
Bb5 {[%clk 0:00:09.1]} 23. c4 {[%clk 0:01:37.8]} 23... Ba6 {[%clk 0:00:06.8]}
24. Nxf4 {[%clk 0:01:28.2]} 24... exf4 {[%clk 0:00:07.7]} 25. Kh2 {[%clk
0:01:28.3]} 25... Qf6 {[%clk 0:00:06.9]} 26. Rfe1 {[%clk 0:01:26.5]} 26... Qxb2
{[%clk 0:00:06.6]} 27. c5 {[%clk 0:01:23.2]} 27... Qe5 {[%clk 0:00:06.6]} 28.
Rd5 {[%clk 0:01:19.4]} 28... Qe7 {[%clk 0:00:07]} 29. e5 {[%clk 0:01:16.9]}
29... b6 {[%clk 0:00:04.4]} 30. c6 {[%clk 0:01:16.5]} 30... Qc7 {[%clk
0:00:03.4]} 31. Rd7 {[%clk 0:01:16]} 31... Qb8 {[%clk 0:00:02.9]} 32. e6 {[%clk
0:01:14.2]} 32... Bc8 {[%clk 0:00:02.5]} 33. Rxf7 {[%clk 0:01:12.7]} 33... Kh8
{[%clk 0:00:03.2]} 34. Rxf8+ {[%clk 0:01:12.8]} 1-0

[Event "Early-Titled-Tuesday-Blitz-July-09-2024"]
[Site "Chess.com"]
[Date "2024.07.09"]
[Round "7"]
[White "NikFil2013"]
[Black "CristianS27"]
[Result "1-0"]
[WhiteElo "2398"]
[BlackElo "2503"]
[TimeControl "180+1"]
[EndTime "9:18:56 PDT"]
[Termination "NikFil2013 won by resignation"]

1. d4 {[%clk 0:03:00.9]} 1... Nf6 {[%clk 0:03:00]} 2. c4 {[%clk 0:03:01.4]} 2...
g6 {[%clk 0:03:00.4]} 3. Nc3 {[%clk 0:03:01.9]} 3... Bg7 {[%clk 0:03:01.1]} 4.
e4 {[%clk 0:03:02]} 4... d6 {[%clk 0:03:01.7]} 5. Nf3 {[%clk 0:03:02.4]} 5...
O-O {[%clk 0:03:02.6]} 6. Be2 {[%clk 0:03:02.7]} 6... e5 {[%clk 0:03:03.2]} 7.
O-O {[%clk 0:03:03.2]} 7... exd4 {[%clk 0:03:04.1]} 8. Nxd4 {[%clk 0:03:03.7]}
8... Re8 {[%clk 0:03:05]} 9. f3 {[%clk 0:02:59.2]} 9... Nc6 {[%clk 0:03:05.6]}
10. Be3 {[%clk 0:02:58.6]} 10... Nh5 {[%clk 0:03:06.1]} 11. Re1 {[%clk
0:02:45.8]} 11... Nf4 {[%clk 0:03:01.6]} 12. Nxc6 {[%clk 0:02:18.6]} 12... Nxe2+
{[%clk 0:03:01.1]} 13. Qxe2 {[%clk 0:02:14.7]} 13... bxc6 {[%clk 0:03:02]} 14.
Red1 {[%clk 0:02:12.7]} 14... Rb8 {[%clk 0:02:31.1]} 15. c5 {[%clk 0:02:09.7]}
15... d5 {[%clk 0:02:14.7]} 16. exd5 {[%clk 0:01:59.1]} 16... Bh6 {[%clk
0:01:41.1]} 17. Ne4 {[%clk 0:01:56.4]} 17... Bxe3+ {[%clk 0:00:57.3]} 18. Qxe3
{[%clk 0:01:55.4]} 18... Bf5 {[%clk 0:00:38.3]} 19. Qd4 {[%clk 0:01:45.2]} 19...
Bxe4 {[%clk 0:00:35.5]} 20. fxe4 {[%clk 0:01:44.6]} 20... Qh4 {[%clk 0:00:35]}
21. Re1 {[%clk 0:01:40]} 21... cxd5 {[%clk 0:00:32.7]} 22. Qxd5 {[%clk
0:01:37.2]} 22... Rxb2 {[%clk 0:00:32.8]} 23. Rf1 {[%clk 0:01:34.1]} 23... Re7
{[%clk 0:00:14.4]} 24. Qd8+ {[%clk 0:01:26.5]} 24... Kg7 {[%clk 0:00:13.6]} 25.
Rxf7+ {[%clk 0:01:17]} 25... Kxf7 {[%clk 0:00:04.8]} 26. Rf1+ {[%clk 0:01:16.2]}
26... Rf2 {[%clk 0:00:01]} 27. Rxf2+ {[%clk 0:01:12.9]} 27... Qxf2+ {[%clk
0:00:01.3]} 28. Kxf2 {[%clk 0:01:13.1]} 28... Rxe4 {[%clk 0:00:02]} 29. Qd5+
{[%clk 0:01:08.1]} 29... Re6 {[%clk 0:00:02]} 30. Qb7 {[%clk 0:01:06.6]} 30...
Ke7 {[%clk 0:00:02.9]} 31. Qxc7+ {[%clk 0:01:06.6]} 31... Kf6 {[%clk 0:00:03]}
32. Qxa7 {[%clk 0:01:06.9]} 32... Re5 {[%clk 0:00:03.3]} 33. c6 {[%clk
0:01:06.2]} 33... Re7 {[%clk 0:00:04.2]} 34. c7 {[%clk 0:01:05.8]} 1-0